fUSD/lending_fUSD_20250606
["ID","MTS","AMOUNT","RATE_DAILY","PERIOD"]
[364643603,1749175848672,-480.0,0.00030164,7]
[364643604,1749175848682,-480.0,0.00030164,7]
[364643605,1749175848692,-481.83692167,0.00030164,7]
[364643606,1749175848701,-1039.15,0.00030164,7]
[364643607,1749175848711,-487.95206151,0.00030164,7]
[364643608,1749175848720,-480.0,0.00030164,7]
[364643609,1749175848730,-511.41,0.00030164,7]
[364643610,1749175848740,-872.21,0.00030164,7]
[364643611,1749175848749,-2267.74,0.00030164,7]
[364643612,1749175848759,-485.77371778,0.00030164,7]
[364643613,1749175848770,-489.64717742,0.00030164,7]
[364643614,1749175848781,-1982.0,0.00030164,7]
[364643615,1749175848791,-480.0,0.00030164,7]
[364643616,1749175848801,-500.0,0.00030164,7]
[364643617,1749175848811,-484.09096895,0.00030164,7]
[364643618,1749175848823,-500.0,0.00030164,2]
[364643619,1749175848832,-500.0,0.00030164,2]
[364643620,1749175848842,-500.0,0.00030164,2]
[364643621,1749175848852,-500.0,0.00030164,2]
[364643622,1749175848862,-424.44492271,0.00030164,7]
[364643623,1749175848872,-500.0,0.00030164,7]
[364643624,1749175848883,-480.0,0.00030164,7]
[364643625,1749175848892,-1004.81,0.00030164,7]
[364643626,1749175848903,-500.0,0.00030164,7]
[364643627,1749175848913,-606.47,0.00030164,7]
[364643628,1749175848923,-727.66,0.00030164,7]
[364643629,1749175848933,-228.35392832,0.00030164,2]
[364643630,1749175848943,-500.0,0.00030164,7]
[364643631,1749175848953,-150.0,0.00030164,2]
[364643632,1749175848963,-500.0,0.00030164,7]
[364643633,1749175848974,-2806.13,0.00030164,7]
[364643634,1749175848984,-791.74,0.00030164,7]
[364643635,1749175848994,-4362.16,0.00030164,7]
[364643636,1749175849004,-480.0,0.00030164,7]
[364643637,1749175849014,-2175.62,0.00030164,7]
[364643638,1749175849024,-480.0,0.00030164,7]
[364643639,1749175849034,-480.0,0.00030164,7]
[364643640,1749175849044,-480.0,0.00030164,7]
[364643641,1749175849055,-500.0,0.00030164,7]
[364643642,1749175849065,-480.0,0.00030164,7]
[364643643,1749175849075,-1850.0,0.00030164,7]
[364643644,1749175849085,-3557.43,0.00030164,7]
[364643645,1749175849094,-480.0,0.00030164,7]
[364643646,1749175849104,-1337.42,0.00030164,2]
[364643647,1749175849115,-480.0,0.00030164,7]
[364643648,1749175849125,-480.9774484,0.00030164,2]
[364643649,1749175849135,-4879.25,0.00030164,7]
[364643650,1749175849145,-480.0,0.00030164,7]
[364643651,1749175849156,-1749.08,0.00030164,7]
[364643652,1749175849166,-151.0,0.00030164,7]
[364643653,1749175849176,-151.0,0.00030164,7]
[364643654,1749175849187,-480.0,0.00030164,7]
[364643655,1749175849203,-848.39,0.00030164,7]
[364643656,1749175849218,-1205.26,0.00030164,7]
[364643657,1749175849233,-1833.64,0.00030164,7]
[364643658,1749175849246,-697.71,0.00030164,7]
[364643659,1749175849256,-480.0,0.00030164,7]
[364643660,1749175849267,-17299.43,0.00030164,7]
[364643661,1749175849277,-2206.12,0.00030164,7]
[364643662,1749175849287,-2044.24,0.00030164,7]
[364643663,1749175849297,-492.59,0.00030164,7]
[364643664,1749175849308,-480.0,0.00030164,7]
[364643665,1749175849320,-150.0,0.00030164,7]
[364643666,1749175849330,-1793.28,0.00030164,7]
[364643667,1749175849340,-484.60386278,0.00030164,7]
[364643668,1749175849351,-150.0,0.00030164,2]
[364643669,1749175849361,-480.0,0.00030164,7]
[364643670,1749175849371,-500.0,0.00030164,7]
[364643671,1749175849381,-1080.27,0.00030164,7]
[364643672,1749175849392,-480.0,0.00030164,7]
[364643673,1749175849402,-500.0,0.00030164,7]
[364643674,1749175849412,-381.11950265,0.00030164,7]
[364643675,1749175849422,-150.0,0.00030164,2]
[364643676,1749175849432,-480.0,0.00030164,7]
[364643677,1749175849442,-482.90681173,0.00030164,7]
[364643678,1749175849452,-1265.11,0.00030164,7]
[364643679,1749175849463,-433.36244355,0.00030164,7]
[364643680,1749175849473,-500.0,0.00030164,7]
[364643681,1749175849484,-11095.78,0.00030164,7]
[364643682,1749175849494,-1540.31,0.00030164,7]
[364643683,1749175849504,-902.66,0.00030164,7]
[364643684,1749175849514,-467.93088065,0.00030164,7]
[364643685,1749175849525,-967.96,0.00030164,7]
[364643686,1749175849534,-607.09,0.00030164,7]
[364643687,1749175849544,-497.57580533,0.00030164,7]
[364643688,1749175849554,-927.05,0.00030164,7]
[364643689,1749175849564,-764.46,0.00030164,7]
[364643690,1749175849574,-150.0,0.00030164,2]
[364643691,1749175849584,-480.0,0.00030164,7]
[364643692,1749175849594,-590.0,0.00030164,7]
[364643693,1749175849604,-480.0,0.00030164,7]
[364643694,1749175849614,-480.0,0.00030164,7]
[364643695,1749175849624,-483.7245068,0.00030164,7]
[364643696,1749175849634,-480.0,0.00030164,7]
[364643697,1749175849643,-480.0,0.00030164,7]
[364643698,1749175849653,-489.93631972,0.00030164,7]
[364643699,1749175849663,-5652.53,0.00030164,7]
[364643700,1749175849672,-492.69618313,0.00030164,7]
[364643701,1749175849683,-480.0,0.00030164,7]
[364643702,1749175849693,-480.0,0.00030164,7]
[364643703,1749175849702,-634.82,0.00030164,7]
[364643704,1749175849712,-1048.23,0.00030164,7]
[364643705,1749175849722,-480.0,0.00030164,7]
[364643706,1749175849732,-507.47220958,0.00030164,7]
[364643707,1749175849742,-480.0,0.00030164,7]
[364643708,1749175849752,-927.0,0.00030164,7]
[364643709,1749175849762,-9622.71,0.00030164,7]
[364643710,1749175849772,-480.0,0.00030164,7]
[364643711,1749175849782,-485.94963205,0.00030164,7]
[364643712,1749175849792,-480.0,0.00030164,7]
[364643713,1749175849802,-151.0,0.00030164,7]
[364643714,1749175849811,-1712.08,0.00030164,7]
[364643715,1749175849822,-151.0,0.00030164,7]
[364643716,1749175849831,-480.0,0.00030164,7]
[364643717,1749175849841,-858.94,0.00030164,7]
[364643718,1749175849850,-492.07708573,0.00030164,7]
[364643719,1749175849860,-480.0,0.00030164,7]
[364643720,1749175849869,-480.0,0.00030164,7]
[364643721,1749175849879,-3067.55,0.00030164,7]
[364643722,1749175850081,-633.82,0.00030164,7]
[364643723,1749175850099,-487.08964457,0.00030164,7]
[364643724,1749175850109,-151.0,0.00030164,7]
[364643725,1749175850118,-151.0,0.00030164,7]
[364643726,1749175850128,-480.0,0.00030164,7]
[364643727,1749175850138,-480.0,0.00030164,7]
[364643728,1749175850147,-4770.31,0.00030164,7]
[364643729,1749175850158,-1413.44,0.00030164,7]
[364643730,1749175850168,-501.62187827,0.00030164,7]
[364643731,1749175850178,-490.59617819,0.00030164,7]
[364643732,1749175850188,-1687.5,0.00030164,7]
[364643733,1749175850198,-480.0,0.00030164,7]
[364643734,1749175850207,-972.86,0.00030164,7]
[364643735,1749175850219,-1691.54,0.00030164,7]
[364643736,1749175850229,-309.72449409,0.00030164,7]
[364643737,1749175850238,-480.0,0.00030164,7]
[364643738,1749175850249,-4719.52,0.00030164,7]
[364643739,1749175850260,-540.614179,0.00030164,7]
[364643740,1749175850269,-486.50801834,0.00030164,7]
[364643741,1749175850278,-168.35247727,0.00030164,7]
[364643742,1749175850288,-540.614179,0.00030164,7]
[364643743,1749175850297,-1110.19,0.00030164,7]
[364643744,1749175850307,-480.0,0.00030164,7]
[364643745,1749175850321,-480.0,0.00030164,7]
[364643746,1749175850331,-480.0,0.00030164,7]
[364643747,1749175850340,-322.88096864,0.00030164,7]
[364643748,1749175850350,-540.614179,0.00030164,7]
[364643749,1749175850362,-540.614179,0.00030164,7]
[364643750,1749175850371,-1513.341587,0.00030164,7]
[364643751,1749175850383,-1359.7,0.00030164,7]
[364643752,1749175850394,-1513.341587,0.00030164,7]
[364643753,1749175850404,-1070.45,0.00030164,7]
[364643754,1749175850415,-155.912864,0.00030164,7]
[364643755,1749175850425,-480.0,0.00030164,7]
[364643756,1749175850434,-1299.32,0.00030164,7]
[364643757,1749175850444,-480.0,0.00030164,7]
[364643758,1749175850453,-697.38,0.00030164,7]
[364643759,1749175850463,-536.89086172,0.00030164,7]
[364643760,1749175850473,-722.75,0.00030164,7]
[364643761,1749175850484,-1513.341587,0.00030164,7]
[364643762,1749175850494,-444.97232061,0.00030164,7]
[364643763,1749175850503,-480.0,0.00030164,7]
[364643764,1749175850512,-1513.341587,0.00030164,7]
[364643765,1749175850522,-480.0,0.00030164,7]
[364643766,1749175850531,-480.0,0.00030164,7]
[364643767,1749175850540,-480.0,0.00030164,7]
[364643768,1749175850550,-4553.01,0.00030164,7]
[364643769,1749175850560,-480.0,0.00030164,7]
[364643770,1749175850569,-1419.14,0.00030164,7]
[364643771,1749175850579,-678.64,0.00030164,7]
[364643772,1749175850588,-500.0,0.00030164,7]
[364643773,1749175850597,-1017.88,0.00030164,7]
[364643774,1749175850607,-1026.98,0.00030164,7]
[364643775,1749175850617,-500.0,0.00030164,7]
[364643776,1749175850626,-1376.56,0.00030164,7]
[364643777,1749175850635,-500.0,0.00030164,7]
[364643778,1749175850644,-487.38858937,0.00030164,7]
[364643779,1749175850653,-500.0,0.00030164,7]
[364643780,1749175850662,-480.0,0.00030164,7]
[364643781,1749175850671,-500.0,0.00030164,7]
[364643782,1749175850681,-500.0,0.00030164,7]
[364643783,1749175850691,-500.0,0.00030164,7]
[364643784,1749175850700,-151.0,0.00030164,7]
[364643785,1749175850710,-480.0,0.00030164,7]
[364643786,1749175850719,-151.0,0.00030164,7]
[364643787,1749175850729,-2592.66,0.00030164,7]
[364643788,1749175850738,-480.0,0.00030164,7]
[364643789,1749175850747,-588.97230922,0.00030164,7]
[364643790,1749175850756,-151.0,0.00030164,7]
[364643791,1749175850765,-151.0,0.00030164,7]
[364643792,1749175850775,-480.0,0.00030164,7]
[364643793,1749175850784,-480.0,0.00030164,7]
[364643794,1749175850795,-480.0,0.00030164,7]
[364643795,1749175850805,-1245.91,0.00030164,7]
[364643796,1749175850815,-480.0,0.00030164,7]
[364643797,1749175850824,-480.0,0.00030164,7]
[364643798,1749175850834,-566.2,0.00030164,7]
[364643799,1749175850844,-480.0,0.00030164,7]
[364643800,1749175850853,-549.15512062,0.00030164,7]
[364643801,1749175850862,-1172.04,0.00030164,7]
[364643802,1749175850871,-856.89553576,0.00030164,2]
[364643803,1749175850880,-664.3,0.00030164,7]
[364643804,1749175850889,-841.54,0.00030164,7]
[364643805,1749175850898,-480.0,0.00030164,7]
[364643806,1749175850909,-480.0,0.00030164,7]
[364643807,1749175850918,-480.0,0.00030164,7]
[364643808,1749175850927,-427.86038464,0.00030164,7]
[364643809,1749175850936,-667.39,0.00030164,7]
[364643810,1749175850945,-480.0,0.00030164,7]
[364643811,1749175850955,-482.66772293,0.00030164,7]
[364643812,1749175850964,-480.0,0.00030164,7]
[364643813,1749175850973,-480.0,0.00030164,7]
[364643814,1749175850983,-480.0,0.00030164,7]
[364643815,1749175850992,-480.0,0.00030164,7]
[364643816,1749175851001,-962.49,0.00030164,7]
[364643817,1749175851010,-1545.06,0.00030164,7]
[364643818,1749175851019,-151.0,0.00030164,7]
[364643819,1749175851029,-602.16,0.00030164,7]
[364643820,1749175851039,-151.0,0.00030164,7]
[364643821,1749175851049,-480.0,0.00030164,7]
[364643822,1749175851059,-485.87160847,0.00030164,7]
[364643823,1749175851069,-480.0,0.00030164,7]
[364643824,1749175851079,-16403.83,0.00030164,7]
[364643825,1749175851088,-534.9,0.00030164,7]
[364643826,1749175851098,-481.25249852,0.00030164,5]
[364643827,1749175851108,-480.0,0.00030164,7]
[364643828,1749175851117,-480.0,0.00030164,7]
[364643829,1749175851127,-827.73,0.00030164,7]
[364643830,1749175851136,-321.10248756,0.00030164,7]
[364643831,1749175851146,-487.50329774,0.00030164,7]
[364643832,1749175851156,-4131.64,0.00030164,7]
[364643833,1749175851166,-430.76517651,0.00030164,7]
[364643834,1749175851176,-480.0,0.00030164,7]
[364643835,1749175851185,-480.0,0.00030164,7]
[364643836,1749175851195,-2245.76,0.00030164,7]
[364643837,1749175851206,-511.24179665,0.00030164,7]
[364643838,1749175851216,-502.88,0.00030164,7]
[364643839,1749175851226,-2453.99,0.00030164,7]
[364643840,1749175851236,-480.0,0.00030164,7]
[364643841,1749175851245,-480.0,0.00030164,7]
[364643842,1749175851255,-480.0,0.00030164,7]
[364643843,1749175851264,-514.51389139,0.00030164,7]
[364643844,1749175851276,-1280.69,0.00030164,7]
[364643845,1749175851286,-480.0,0.00030164,7]
[364643846,1749175851296,-480.0,0.00030164,7]
[364643847,1749175851306,-480.0,0.00030164,7]
[364643848,1749175851318,-480.0,0.00030164,7]
[364643849,1749175851328,-3354.28,0.00030164,7]
[364643850,1749175851338,-19083.82,0.00030164,7]
[364643851,1749175851348,-480.0,0.00030164,7]
[364643852,1749175851358,-487.23862546,0.00030164,7]
[364643853,1749175851368,-480.0,0.00030164,7]
[364643854,1749175851377,-420.0,0.00030164,7]
[364643855,1749175851389,-480.0,0.00030164,7]
[364643856,1749175851398,-493.8040974,0.00030164,7]
[364643857,1749175851408,-692.46,0.00030164,7]
[364643858,1749175851417,-856.31,0.00030164,7]
[364643859,1749175851426,-488.6972386,0.00030164,7]
[364643860,1749175851436,-480.0,0.00030164,7]
[364643861,1749175851446,-500.0,0.00030164,2]
[364643862,1749175851456,-829.46,0.00030164,7]
[364643863,1749175851465,-480.0,0.00030164,7]
[364643864,1749175851475,-889.03,0.00030164,7]
[364643865,1749175851484,-628.26,0.00030164,7]
[364643866,1749175851494,-500.0,0.00030164,7]
[364643867,1749175851504,-480.0,0.00030164,7]
[364643868,1749175851513,-886.4,0.00030164,7]
[364643869,1749175851523,-1069.94,0.00030164,7]
[364643870,1749175851533,-844.04,0.00030164,7]
[364643871,1749175851543,-903.36,0.00030164,7]
[364643872,1749175851553,-500.0,0.00030164,7]
[364643873,1749175851562,-818.48,0.00030164,7]
[364643874,1749175851571,-469.05084811,0.00030164,7]
[364643875,1749175851581,-2088.01,0.00030164,7]
[364643876,1749175851590,-480.0,0.00030164,7]
[364643877,1749175851599,-480.0,0.00030164,7]
[364643878,1749175851608,-150.0,0.00030164,7]
[364643879,1749175851618,-480.0,0.00030164,3]
[364643880,1749175851628,-500.0,0.00030164,7]
[364643881,1749175851638,-426.01195317,0.00030164,7]
[364643882,1749175851647,-500.0,0.00030164,2]
[364643883,1749175851658,-500.0,0.00030164,7]
[364643884,1749175851668,-511.53093234,0.00030164,7]
[364643885,1749175851678,-500.0,0.00030164,7]
[364643886,1749175851687,-500.0,0.00030164,7]
[364643887,1749175851697,-6205.25,0.00030164,7]
[364643888,1749175851706,-500.0,0.00030164,7]
[364643889,1749175851716,-500.0,0.00030164,7]
[364643890,1749175851725,-668.71,0.00030164,7]
[364643891,1749175851735,-500.0,0.00030164,7]
[364643892,1749175851744,-646.9,0.00030164,7]
[364643893,1749175851753,-500.0,0.00030164,7]
[364643894,1749175851763,-509.00706742,0.00030164,7]
[364643895,1749175851772,-500.0,0.00030164,7]
[364643896,1749175851782,-500.0,0.00030164,7]
[364643897,1749175851792,-500.0,0.00030164,7]
[364643898,1749175851801,-480.0,0.00030164,7]
[364643899,1749175851810,-419.20933824,0.00030164,7]
[364643900,1749175851820,-1150.26,0.00030164,7]
[364643901,1749175851829,-703.99,0.00030164,7]
[364643902,1749175851838,-69238.55,0.00030164,7]
[364643903,1749175851848,-540.31,0.00030164,7]
[364643904,1749175851858,-480.0,0.00030164,7]
[364643905,1749175851868,-151.0,0.00030164,7]
[364643906,1749175851877,-2464.0,0.00030164,7]
[364643907,1749175851886,-278.375463,0.00030164,7]
[364643908,1749175851896,-487.93579476,0.00030164,7]
[364643909,1749175851907,-1203.48,0.00030164,7]
[364643910,1749175851916,-1962.59,0.00030164,7]
[364643911,1749175851925,-151.0,0.00030164,7]
[364643912,1749175851935,-1178.62,0.00030164,7]
[364643913,1749175851944,-11844.36,0.00030164,7]
[364643914,1749175851953,-151.0,0.00030164,7]
[364643915,1749175851963,-480.0,0.00030164,7]
[364643916,1749175851972,-937.77,0.00030164,7]
[364643917,1749175851981,-1519.25,0.00030164,7]
[364643918,1749175851991,-1146.54,0.00030164,7]
[364643919,1749175852000,-480.0,0.00030164,7]
[364643920,1749175852009,-480.0,0.00030164,7]
[364643921,1749175852018,-482.60664066,0.00030164,7]
[364643922,1749175852028,-500.0,0.00030164,7]
[364643923,1749175852037,-3545.37,0.00030164,7]
[364643924,1749175852047,-500.0,0.00030164,7]
[364643925,1749175852056,-750.62,0.00030164,7]
[364643926,1749175852065,-514.27684964,0.00030164,7]
[364643927,1749175852074,-1715.45,0.00030164,7]
[364643928,1749175852084,-1942.92,0.00030164,7]
[364643929,1749175852093,-480.0,0.00030164,7]
[364643930,1749175852102,-480.0,0.00030164,7]
[364643931,1749175852111,-480.0,0.00030164,7]
[364643932,1749175852121,-150.0,0.00030164,7]
[364643933,1749175852130,-480.0,0.00030164,2]
[364643934,1749175852139,-481.45142033,0.00030164,7]
[364643935,1749175852148,-3312.63,0.00030164,7]
[364643936,1749175852158,-166.778531,0.00030164,7]
[364643937,1749175852168,-150.0,0.00030164,7]
[364643938,1749175852177,-166.778531,0.00030164,7]
[364643939,1749175852188,-480.0,0.00030164,7]
[364643940,1749175852197,-480.0,0.00030164,7]
[364643941,1749175852206,-495.69808297,0.00030164,7]
[364643942,1749175852215,-580.63,0.00030164,7]
[364643943,1749175852225,-481.92198637,0.00030164,7]
[364643944,1749175852234,-151.725073,0.00030164,7]
[364643945,1749175852243,-480.0,0.00030164,2]
[364643946,1749175852253,-500.0,0.00030164,7]
[364643947,1749175852262,-494.6625354,0.00030164,7]
[364643948,1749175852272,-600.0,0.00030164,2]
[364643949,1749175852282,-480.0,0.00030164,7]
[364643950,1749175852291,-480.0,0.00030164,7]
[364643951,1749175852301,-1016.01,0.00030164,7]
[364643952,1749175852311,-166.778531,0.00030164,7]
[364643953,1749175852326,-3743.16,0.00030164,7]
[364643954,1749175852341,-486.49200386,0.00030164,7]
[364643955,1749175852357,-166.778531,0.00030164,7]
[364643956,1749175852373,-824.93,0.00030164,7]
[364643957,1749175852383,-700.0,0.00030164,7]
[364643958,1749175852393,-500.0,0.00030164,7]
[364643959,1749175852405,-270.86933667,0.00030164,2]
[364643960,1749175852414,-160.54,0.00030164,2]
[364643961,1749175852424,-641.43259006,0.0003017,2]
[364643962,1749175852433,-511.39906616,0.00030173,5]
[364643963,1749175852442,-500.0,0.00030173,5]
[364643964,1749175852453,-500.0,0.00030173,5]
[364643965,1749175852462,-500.0,0.00030173,5]
[364643966,1749175852472,-500.0,0.00030173,5]
[364643967,1749175852482,-151.0,0.00030179,7]
[364643968,1749175852491,-1080.95575718,0.00030186,2]
[364643969,1749175852500,-654.41,0.00030191,7]
[364643970,1749175852567,-500.0,0.00030191,7]
[364643971,1749175852577,-150.0,0.00030191,7]
[364643972,1749175852588,-200.0,0.00030191,7]
[364643973,1749175852598,-150.0,0.00030191,7]
[364643974,1749175852609,-502.02805347,0.00030191,7]
[364643975,1749175852620,-150.0,0.00030191,7]
[364643976,1749175852629,-500.0,0.00030191,7]
[364643977,1749175852639,-500.0,0.00030191,7]
[364643978,1749175852649,-500.0,0.00030191,7]
[364643979,1749175852658,-500.0,0.00030191,7]
[364643980,1749175852668,-554.70642229,0.00030191,7]
[364643981,1749175852677,-500.0,0.00030191,7]
[364643982,1749175852686,-150.0,0.00030191,7]
[364643983,1749175852695,-528.0,0.00030191,7]
[364643984,1749175852705,-500.0,0.00030191,7]
[364643985,1749175852715,-500.0,0.00030191,7]
[364643986,1749175852725,-150.0,0.00030191,7]
[364643987,1749175852735,-500.0,0.00030191,7]
[364643988,1749175852744,-500.0,0.00030191,7]
[364643989,1749175852754,-500.0,0.00030191,7]
[364643990,1749175852765,-500.0,0.00030191,7]
[364643991,1749175852776,-500.0,0.00030191,7]
[364643992,1749175852785,-500.0,0.00030191,7]
[364643993,1749175852794,-500.0,0.00030191,7]
[364643994,1749175852803,-528.68409687,0.00030191,7]
[364643995,1749175852812,-1850.0,0.00030191,7]
[364643996,1749175852821,-150.0,0.00030191,7]
[364643997,1749175852830,-500.0,0.00030191,7]
[364643998,1749175852840,-500.0,0.00030191,7]
[364643999,1749175852849,-500.0,0.00030191,7]
[364644000,1749175852860,-590.0,0.00030191,7]
[364644001,1749175852869,-500.0,0.00030191,2]
[364644002,1749175852878,-500.0,0.00030191,7]
[364644003,1749175852888,-500.0,0.00030191,7]
[364644004,1749175852897,-150.0,0.00030191,7]
[364644005,1749175852907,-500.0,0.00030191,2]
[364644006,1749175852916,-2464.0,0.00030191,7]
[364644007,1749175852925,-503.6039194,0.00030191,7]
[364644008,1749175852935,-500.0,0.00030191,7]
[364644009,1749175852944,-150.0,0.00030191,7]
[364644010,1749175852953,-150.0,0.00030191,7]
[364644011,1749175852963,-576.51934188,0.00030191,7]
[364644012,1749175852972,-221.015779,0.00030192,7]
[364644013,1749175852981,-221.015779,0.00030192,7]
[364644014,1749175852990,-151.0,0.00030192,7]
[364644015,1749175852999,-151.0,0.00030192,7]
[364644016,1749175853009,-151.0,0.00030192,7]
[364644017,1749175853018,-151.0,0.00030192,7]
[364644018,1749175853027,-151.391138,0.00030192,7]
[364644019,1749175853037,-151.391138,0.00030192,7]
[364644020,1749175853047,-437.365916,0.00030192,7]
[364644021,1749175853056,-437.365916,0.00030192,7]
[364644022,1749175853065,-151.0,0.00030192,7]
[364644023,1749175853074,-151.0,0.00030192,7]
[364644024,1749175853084,-234.045886,0.00030192,7]
[364644025,1749175853093,-234.045886,0.00030192,7]
[364644026,1749175853103,-151.0,0.00030192,7]
[364644027,1749175853113,-151.0,0.00030199,7]
[364644028,1749175853122,-654.41,0.00030199,7]
[364644029,1749175853131,-500.0,0.00030199,7]
[364644030,1749175853140,-302.0,0.00030199,30]
[364644031,1749175853150,-1165.53,0.000302,2]
[364644032,1749175853160,-689.15,0.000302,2]
[364644033,1749175853170,-96253.35249045,0.000302,2]
[364644034,1749175853179,-64229.64446844,0.000302,7]
[364644035,1749175853961,-883.0,0.00029906,2]
[364644036,1749175853971,-480.0,0.00030164,7]
[364644037,1749175853980,-629.09,0.00030164,7]
[364644038,1749175853990,-480.0,0.00030164,7]
[364644039,1749175854000,-48302.28553156,0.000302,7]
[364644040,1749175854010,-151.0,0.000302,7]
[364644041,1749175854020,-151.0,0.000302,7]
[364644042,1749175854029,-151.0,0.000302,7]
[364644043,1749175854038,-180.094485,0.000302,7]
[364644044,1749175854048,-151.0,0.000302,7]
[364644045,1749175854057,-151.0,0.000302,7]
[364644046,1749175854067,-229.808585,0.000302,7]
[364644047,1749175854076,-157.600011,0.000302,7]
[364644048,1749175854085,-1183.827025,0.000302,7]
[364644049,1749175854094,-151.0,0.000302,7]
[364644050,1749175854104,-1183.827025,0.000302,7]
[364644051,1749175854113,-151.0,0.000302,7]
[364644052,1749175854123,-151.0,0.000302,7]
[364644053,1749175854133,-671.496429,0.000302,7]
[364644054,1749175854142,-671.496429,0.000302,7]
[364644055,1749175854151,-151.0,0.000302,7]
[364644056,1749175854162,-153.79294,0.000302,7]
[364644057,1749175854171,-151.0,0.000302,7]
[364644058,1749175854180,-186.894339,0.000302,7]
[364644059,1749175854190,-151.0,0.000302,7]
[364644060,1749175854199,-151.0,0.000302,7]
[364644061,1749175854209,-151.0,0.000302,7]
[364644062,1749175854218,-151.0,0.000302,7]
[364644063,1749175854228,-181.209144,0.000302,7]
[364644064,1749175854238,-151.719318,0.000302,7]
[364644065,1749175854247,-152.060433,0.000302,7]
[364644066,1749175854256,-152.060502,0.000302,7]
[364644067,1749175854266,-154.398196,0.000302,7]
[364644068,1749175854275,-151.0,0.000302,7]
[364644069,1749175854284,-906.18466,0.000302,7]
[364644070,1749175854294,-906.18466,0.000302,7]
[364644071,1749175854303,-151.0,0.000302,7]
[364644072,1749175854314,-151.0,0.000302,7]
[364644073,1749175854326,-151.0,0.000302,7]
[364644074,1749175854336,-151.0,0.000302,7]
[364644075,1749175854345,-154.250037,0.000302,7]
[364644076,1749175854354,-151.0,0.000302,7]
[364644077,1749175854364,-151.0,0.000302,7]
[364644078,1749175854373,-151.0,0.000302,7]
[364644079,1749175854383,-151.0,0.000302,7]
[364644080,1749175854393,-151.0,0.000302,7]
[364644081,1749175854402,-151.0,0.000302,7]
[364644082,1749175854412,-151.0,0.000302,7]
[364644083,1749175854422,-227.336484,0.000302,7]
[364644084,1749175854431,-331.228082,0.000302,7]
[364644085,1749175854441,-331.228082,0.000302,7]
[364644086,1749175854450,-151.0,0.000302,7]
[364644087,1749175854459,-151.0,0.000302,7]
[364644088,1749175854468,-151.0,0.000302,7]
[364644089,1749175854477,-151.0,0.000302,7]
[364644090,1749175854486,-151.0,0.000302,7]
[364644091,1749175854496,-151.0,0.000302,7]
[364644092,1749175854506,-151.0,0.000302,7]
[364644093,1749175854516,-151.0,0.000302,7]
[364644094,1749175854525,-172.249599,0.000302,7]
[364644095,1749175854535,-151.0,0.000302,7]
[364644096,1749175854544,-172.249599,0.000302,7]
[364644097,1749175854553,-1067.679141,0.000302,7]
[364644098,1749175854563,-484.46453,0.000302,7]
[364644099,1749175854572,-151.0,0.000302,7]
[364644100,1749175854583,-484.46453,0.000302,7]
[364644101,1749175854592,-151.0,0.000302,7]
[364644102,1749175854602,-748.056027,0.000302,7]